bitfinex/quotes_BTCUSD_20220202
["timestamp","ask_amount","ask_price","bid_price","bid_amount"]
[1643833806746,0.1,37541.0,37539.0,0.0231]
[1643833806948,1.43359228,37540.0,37539.0,0.0231]
[1643833807145,0.63359228,37540.0,37539.0,0.0231]
[1643833807346,1.09777378,37540.0,37539.0,0.0231]
[1643833807547,0.91706395,37540.0,37539.0,0.0231]
[1643833807745,1.09777378,37540.0,37539.0,0.0231]
[1643833807946,0.91706395,37540.0,37539.0,0.0231]
[1643833808146,1.56706395,37540.0,37539.0,0.0231]
[1643833808346,0.91706395,37540.0,37539.0,0.0231]
[1643833808546,1.09777378,37540.0,37539.0,0.0231]
[1643833809046,0.91706395,37540.0,37539.0,0.0231]
[1643833809297,1.09777378,37540.0,37539.0,0.0231]
[1643833809499,0.91706395,37540.0,37539.0,0.14269498]
[1643833809699,1.09777378,37540.0,37539.0,0.14269498]
[1643833809899,0.91706395,37540.0,37539.0,0.14269498]
[1643833810099,1.09777378,37540.0,37539.0,0.14269498]
[1643833810301,0.91706395,37540.0,37539.0,0.14269498]
[1643833810500,1.09777378,37540.0,37539.0,0.14269498]
[1643833810707,0.353299,37540.0,37539.0,0.14269498]
[1643833811104,0.46059218,37544.0,37539.0,0.14269498]
[1643833811303,0.1,37543.0,37539.0,0.14269498]
[1643833811501,0.2798741,37544.0,37539.0,0.14269498]
[1643833811701,0.28088035,37543.0,37539.0,0.14269498]
[1643833812304,0.353299,37542.0,37539.0,0.14269498]
[1643833812703,0.17488518,37541.0,37539.0,0.14269498]
[1643833812901,0.46159843,37543.0,37539.0,0.14269498]
[1643833812902,0.353299,37540.0,37539.0,0.14269498]
[1643833813144,0.28088035,37543.0,37539.0,0.14269498]
[1643833813145,0.1,37541.0,37539.0,0.14269498]
[1643833813346,0.353299,37540.0,37539.0,0.14269498]
[1643833813847,0.1,37540.0,37539.0,0.14269498]
[1643833814846,0.27824003,37542.0,37539.0,0.14269498]
[1643833815146,0.353299,37541.0,37539.0,0.08289749]
[1643833815346,0.353299,37541.0,37540.0,0.05979749]
[1643833815544,0.53355741,37541.0,37540.0,0.11959498]
[1643833815944,0.353299,37541.0,37540.0,0.11959498]
[1643833816546,0.52756177,37541.0,37540.0,0.11959498]
[1643833816786,0.353299,37541.0,37540.0,0.11959498]
[1643833817690,0.52804294,37541.0,37540.0,0.11959498]
[1643833818087,0.92804294,37541.0,37540.0,0.11959498]
[1643833818487,0.52804294,37541.0,37540.0,0.11959498]
[1643833819990,1.22804294,37541.0,37540.0,0.11959498]
[1643833820551,1.40876102,37541.0,37540.0,0.11959498]
[1643833820749,1.82876102,37541.0,37540.0,0.11959498]
[1643833821351,1.55,37540.0,37539.0,0.0231]
[1643833821549,1.553299,37540.0,37539.0,0.0231]
[1643833821748,1.73401708,37540.0,37539.0,0.0231]
[1643833822352,2.06197717,37540.0,37539.0,0.0231]
[1643833826293,0.26963779,37532.0,37531.0,0.00375736]
[1643833826495,0.62293679,37532.0,37531.0,0.00375736]
[1643833826896,1.25372849,37532.0,37531.0,0.00375736]
[1643833827094,1.25372849,37532.0,37531.0,0.0031]
[1643833827294,1.45120897,37532.0,37531.0,0.0031]
[1643833827495,1.63198232,37532.0,37531.0,0.0031]
[1643833827698,1.73098232,37532.0,37531.0,0.0031]
[1643833827894,1.68098232,37532.0,37531.0,0.0031]
[1643833828155,1.33098232,37532.0,37531.0,0.0031]
[1643833828356,1.15020897,37532.0,37531.0,0.0031]
[1643833828657,1.43098498,37532.0,37531.0,0.0031]
[1643833830553,1.25020897,37532.0,37531.0,0.0031]
[1643833830754,1.4309864,37532.0,37531.0,0.0031]
[1643833830954,1.8509864,37532.0,37531.0,0.0031]
[1643833831554,1.75678017,37532.0,37531.0,0.0031]
[1643833831795,1.65678017,37532.0,37531.0,0.0031]
[1643833832697,1.33814238,37532.0,37531.0,0.0031]
[1643833832900,0.873299,37532.0,37531.0,0.0031]
[1643833833895,0.773299,37532.0,37531.0,0.0031]
[1643833835642,0.85662424,37532.0,37531.0,0.0031]
[1643833835842,0.95662424,37532.0,37531.0,0.0031]
[1643833839498,1.13740341,37532.0,37531.0,0.0031]
[1643833842198,1.4516835,37532.0,37531.0,0.0031]
[1643833842598,0.7,37531.0,37526.0,0.00185729]
[1643833842798,0.353299,37530.0,37526.0,0.00185729]
[1643833843242,0.1,37529.0,37526.0,0.00185729]
[1643833843642,0.353299,37528.0,37526.0,0.00185729]
[1643833843842,0.1,37527.0,37526.0,0.00185729]
[1643833844045,0.56211253,37527.0,37526.0,0.00185729]
[1643833844243,0.73836968,37527.0,37526.0,0.00185729]
[1643833845244,0.38507068,37527.0,37526.0,0.00185729]
[1643833845444,0.1,37527.0,37526.0,0.00185729]
[1643833845647,0.1,37530.0,37526.0,0.00185729]
[1643833845850,0.53072647,37529.0,37526.0,0.00185729]
[1643833846049,0.353299,37528.0,37526.0,0.00185729]
[1643833846445,1.45,37527.0,37526.0,0.00185729]
[1643833846645,1.45,37527.0,37524.0,0.0011]
[1643833846646,0.65,37525.0,37524.0,0.0011]
[1643833846901,1.47669529,37525.0,37524.0,0.0011]
[1643833847099,1.54334729,37525.0,37524.0,0.0011]
[1643833847700,1.47669529,37525.0,37524.0,0.0011]
[1643833847902,0.82669529,37525.0,37524.0,0.0011]
[1643833850003,0.72669529,37525.0,37524.0,0.0011]
[1643833851254,1.00972995,37525.0,37524.0,0.0011]
[1643833852255,0.82669529,37525.0,37524.0,0.0011]
[1643833857696,0.87669529,37525.0,37524.0,0.0011]
[1643833859248,0.87669529,37525.0,37524.0,0.000888]
[1643833860849,1.05750116,37525.0,37524.0,0.000888]
[1643833861050,0.92999529,37525.0,37524.0,0.000888]
[1643833861250,0.87999529,37525.0,37524.0,0.000888]
[1643833861456,0.82669529,37525.0,37524.0,0.000888]
[1643833861904,0.82669529,37525.0,37519.0,0.0011]
[1643833862109,0.22173455,37521.0,37515.0,0.19310885]
[1643833862302,0.22173455,37521.0,37517.0,0.00262046]
[1643833862502,0.1,37524.0,37517.0,0.00262046]
[1643833863108,0.1,37524.0,37515.0,0.24310885]
[1643833863309,0.54702224,37530.0,37519.0,0.00065504]
[1643833863608,0.0193495,37529.0,37519.0,0.00065504]
[1643833864008,0.22332096,37527.0,37521.0,0.07798384]
[1643833864206,0.22332096,37527.0,37522.0,0.18385329]
[1643833864406,0.0193495,37529.0,37522.0,0.18385329]
[1643833864608,0.0193495,37529.0,37523.0,0.0533]
[1643833865106,0.0193495,37529.0,37522.0,0.10065502]
[1643833865305,0.0193495,37529.0,37522.0,0.00065502]
[1643833865548,0.29056938,37525.0,37516.0,0.01926792]
[1643833865745,0.29056938,37525.0,37524.0,0.00065501]
[1643833866248,0.64386838,37525.0,37524.0,0.00065501]
[1643833866447,0.29056938,37525.0,37524.0,0.00065501]
[1643833866648,0.29056938,37525.0,37516.0,0.98654208]
[1643833866845,0.29056938,37525.0,37523.0,0.00065502]
[1643833867849,0.1,37529.0,37516.0,0.80064216]
[1643833868046,0.22914624,37527.0,37522.0,0.00065502]
[1643833868945,0.23231003,37526.0,37522.0,0.00065502]
[1643833869145,0.23231003,37526.0,37515.0,0.18996606]
[1643833869423,0.23231003,37526.0,37523.0,0.00065502]
[1643833869424,0.33231003,37526.0,37523.0,0.00065502]
[1643833870422,0.33231003,37526.0,37517.0,0.45436229]
[1643833870620,1.68996606,37525.0,37514.0,0.27648455]
[1643833870827,1.68996606,37525.0,37513.0,0.0031]
[1643833870828,0.18080307,37524.0,37513.0,0.0031]
[1643833871124,0.06666,37522.0,37513.0,0.0031]
[1643833871324,0.066661,37520.0,37513.0,0.0031]
[1643833871521,0.57280559,37519.0,37513.0,0.0031]
[1643833871820,0.35654177,37514.0,37513.0,0.0031]
[1643833872025,0.70984077,37514.0,37513.0,0.0031]
[1643833872325,0.80984077,37514.0,37513.0,0.0031]
[1643833873449,0.71425192,37514.0,37513.0,0.0031]
[1643833873648,0.71403592,37514.0,37513.0,0.002933]
[1643833875653,0.453299,37514.0,37513.0,0.002933]
[1643833876901,0.29151254,37518.0,37513.0,0.002933]
[1643833877098,0.353299,37517.0,37513.0,0.22823134]
[1643833877300,0.1,37516.0,37513.0,0.002933]
[1643833877500,0.353299,37515.0,37513.0,0.002933]
[1643833877698,0.1,37514.0,37513.0,0.00358836]
[1643833878800,0.1,37514.0,37513.0,0.002933]
[1643833879099,0.49388695,37518.0,37513.0,0.002933]
[1643833879100,0.1,37517.0,37513.0,0.002933]
[1643833879401,0.353299,37516.0,37513.0,0.002933]
[1643833879700,0.1,37515.0,37513.0,0.002933]
[1643833879902,0.353299,37514.0,37513.0,0.002933]
[1643833880301,0.353299,37514.0,37512.0,0.00062854]
[1643833880302,0.35,37513.0,37512.0,0.00062854]
[1643833880550,0.453299,37513.0,37512.0,0.00062854]
[1643833881351,0.1,37513.0,37512.0,0.00062854]
[1643833881556,0.29151254,37518.0,37512.0,0.31850488]
[1643833881755,0.29151254,37518.0,37512.0,0.27231188]
[1643833881954,0.29151254,37518.0,37513.0,0.096187]
[1643833882155,0.29151254,37518.0,37512.0,0.22231188]
[1643833882658,0.29151254,37518.0,37515.0,0.27094138]
[1643833882852,0.29151254,37518.0,37514.0,0.00065507]
[1643833883453,0.29151254,37518.0,37513.0,0.066644]
[1643833883655,0.29151254,37518.0,37514.0,0.00065507]
[1643833884300,0.1,37521.0,37514.0,0.00065507]
[1643833884301,0.0880112,37522.0,37514.0,0.00065507]
[1643833884501,0.1,37522.0,37514.0,0.00065507]
[1643833884700,0.1,37522.0,37512.0,0.61625022]
[1643833884903,0.1,37522.0,37516.0,0.00065505]
[1643833885105,0.17279004,37527.0,37516.0,0.00065505]
[1643833885308,0.02040945,37528.0,37520.0,0.24110582]
[1643833885605,0.23147168,37528.0,37516.0,0.05065505]
[1643833886003,0.23147168,37528.0,37516.0,0.05]
[1643833886203,0.23147168,37528.0,37520.0,0.00065503]
[1643833886404,0.23140168,37528.0,37520.0,0.00065503]
[1643833886603,0.2442891,37524.0,37521.0,0.20927835]
[1643833886807,0.2442891,37524.0,37520.0,0.00065503]
[1643833886808,0.353299,37523.0,37520.0,0.00065503]
[1643833887006,0.17888994,37522.0,37520.0,0.00065503]
[1643833887205,0.703299,37521.0,37512.0,0.00062854]
[1643833887406,0.35,37521.0,37520.0,0.00065503]
[1643833887608,0.97935573,37521.0,37520.0,0.00065503]
[1643833887811,0.06666043,37517.0,37514.0,0.00262053]
[1643833888052,0.6604365,37518.0,37514.0,0.00262053]
[1643833888254,0.453299,37517.0,37514.0,0.00262053]
[1643833888453,0.353299,37516.0,37512.0,0.00062854]
[1643833888655,0.1,37517.0,37512.0,0.00062854]
[1643833888656,0.28082699,37517.0,37512.0,0.00062854]
[1643833888855,0.28440933,37516.0,37512.0,0.00062854]
[1643833890359,0.18098615,37522.0,37512.0,0.00062854]
[1643833890557,0.18082699,37523.0,37512.0,0.05062854]
[1643833890860,0.01931904,37524.0,37512.0,0.05062854]
[1643833891057,0.01910204,37524.0,37515.0,0.080244]
[1643833891256,0.21562982,37522.0,37518.0,0.26478295]
[1643833891464,0.21562982,37522.0,37515.0,0.05065477]
[1643833891657,0.45287344,37523.0,37515.0,0.05065477]
[1643833891909,0.353299,37522.0,37512.0,0.00062854]
[1643833892116,0.45287344,37523.0,37517.0,0.00065476]
[1643833892117,0.19094808,37521.0,37517.0,0.00065476]
[1643833892310,0.42931991,37520.0,37517.0,0.00065476]
[1643833892508,0.348299,37519.0,37517.0,0.00065476]
[1643833892710,0.50269062,37524.0,37518.0,0.23588743]
[1643833892711,0.18082699,37522.0,37518.0,0.23588743]
[1643833892913,0.52861586,37527.0,37518.0,0.23588743]
[1643833893111,0.19094808,37527.0,37518.0,0.23588743]
[1643833893411,0.29922699,37529.0,37518.0,0.47705541]
[1643833893608,0.84146041,37529.0,37523.0,0.22640198]
[1643833893812,0.54223342,37529.0,37524.0,0.26871933]
[1643833894009,0.25840511,37529.0,37524.0,0.26871933]
[1643833894207,0.18082699,37530.0,37524.0,0.26871933]
[1643833894609,0.00063617,37528.0,37524.0,0.26871933]
[1643833895311,0.00063617,37528.0,37524.0,0.44928124]
[1643833895565,0.39815613,37530.0,37524.0,0.26871933]
[1643833895962,0.00063618,37528.0,37524.0,0.26871933]
[1643833896364,0.26270752,37528.0,37524.0,0.26871933]
[1643833896765,0.26207134,37528.0,37521.0,0.27242312]
[1643833896965,0.26207134,37528.0,37522.0,0.18454122]
[1643833897165,0.26270752,37528.0,37521.0,0.06663]
[1643833897466,0.00063618,37528.0,37522.0,0.18156272]
[1643833898067,0.1,37529.0,37522.0,0.18491706]
[1643833898265,0.00061369,37527.0,37522.0,0.18491706]
[1643833899064,0.00061369,37527.0,37522.0,0.18361436]
[1643833899301,0.1,37529.0,37522.0,0.18361436]
[1643833899501,0.00061368,37527.0,37522.0,0.18361436]
[1643833900004,0.00061368,37527.0,37521.0,0.32345797]
[1643833900205,0.00061368,37527.0,37522.0,0.26268122]
[1643833900206,0.25264617,37527.0,37522.0,0.26268122]
[1643833900403,0.25203249,37527.0,37522.0,0.26268122]
[1643833900604,0.25264616,37527.0,37522.0,0.26268122]
[1643833900803,0.25264616,37527.0,37522.0,0.25786286]
[1643833901606,0.25203249,37527.0,37522.0,0.25786286]
[1643833901804,0.25264826,37527.0,37522.0,0.25786286]
[1643833902003,0.00061577,37527.0,37522.0,0.25786286]
[1643833902204,0.09561577,37529.0,37522.0,0.25786286]
[1643833903058,0.32333746,37529.0,37522.0,0.25786286]
[1643833903256,0.22772169,37529.0,37522.0,0.25786286]
[1643833904252,0.32772169,37529.0,37522.0,0.25786286]
[1643833904452,0.32772169,37529.0,37521.0,0.32345797]
[1643833904660,0.17279456,37528.0,37515.0,0.4842]
[1643833905053,0.27279456,37528.0,37515.0,0.1164]
[1643833905255,0.353326,37527.0,37515.0,0.1164]
[1643833905456,0.20777061,37520.0,37515.0,0.38186977]
[1643833905655,0.20777061,37520.0,37519.0,0.24687753]
[1643833906455,0.066649,37524.0,37519.0,0.24687753]
[1643833906456,0.13329711,37524.0,37519.0,0.24687753]
[1643833906661,0.166647,37526.0,37519.0,0.24687753]
[1643833906662,0.1,37526.0,37519.0,0.24687753]
[1643833906901,0.19094808,37528.0,37519.0,0.24687753]
[1643833907107,0.00065411,37529.0,37519.0,0.24687753]
[1643833907502,0.00065411,37529.0,37525.0,0.25623602]
[1643833907704,0.18082699,37530.0,37525.0,0.25623602]
[1643833907905,0.00065416,37529.0,37525.0,0.25623602]
[1643833908704,0.24001453,37528.0,37525.0,0.25623602]
[1643833908904,0.24001453,37528.0,37521.0,0.25051457]
[1643833909104,0.24001453,37528.0,37522.0,0.00065432]
[1643833909903,0.58241853,37527.0,37522.0,0.00065432]
[1643833910104,0.353326,37526.0,37522.0,0.26390861]
[1643833910305,0.24001453,37528.0,37522.0,0.00022034]
[1643833910550,0.453326,37527.0,37522.0,0.00022034]
[1643833910850,0.24001453,37528.0,37522.0,0.00022034]
[1643833911349,0.24001453,37528.0,37521.0,0.25604217]
[1643833911350,0.24001453,37528.0,37521.0,0.54813724]
[1643833911750,0.34001453,37528.0,37521.0,0.54813724]
[1643833912450,0.40665589,37528.0,37521.0,0.29633622]
[1643833913151,0.26624566,37525.0,37516.0,0.18037984]
[1643833913451,0.21380128,37522.0,37516.0,0.27640504]
[1643833914151,0.21380128,37522.0,37518.0,0.30791962]
[1643833914400,0.33289366,37525.0,37518.0,0.30791962]
[1643833914601,0.26624566,37525.0,37518.0,0.35791962]
[1643833914998,0.06664333,37526.0,37520.0,0.0006537]
[1643833915200,0.1,37528.0,37520.0,0.0006537]
[1643833915408,0.24989788,37526.0,37520.0,0.0006537]
[1643833915599,0.18148053,37529.0,37520.0,0.0006537]
[1643833915600,0.16729127,37529.0,37520.0,0.0006537]
[1643833915998,0.39757881,37529.0,37519.0,0.09190393]
[1643833916200,0.39819726,37529.0,37522.0,0.00061683]
[1643833916598,0.24570032,37527.0,37524.0,0.29400747]
[1643833916800,0.24570032,37527.0,37522.0,0.00061683]
[1643833917198,0.24570032,37527.0,37519.0,0.09190393]
[1643833917499,0.24570032,37527.0,37518.0,0.05]
[1643833917500,0.24570032,37527.0,37522.0,0.00061683]
[1643833917698,0.353326,37526.0,37522.0,0.00061683]
[1643833918047,0.353326,37526.0,37522.0,0.2320544]
[1643833918250,0.24570032,37527.0,37522.0,0.2320544]
[1643833918447,0.1,37528.0,37522.0,0.23143757]
[1643833918647,0.1,37528.0,37522.0,0.2320544]
[1643833919248,0.10061845,37529.0,37522.0,0.2320544]
[1643833919648,0.20266515,37529.0,37522.0,0.22643757]
[1643833919849,0.30328361,37529.0,37522.0,0.2270544]
[1643833920047,0.20328361,37529.0,37522.0,0.2270544]
[1643833920847,0.20266515,37529.0,37522.0,0.22643757]
[1643833921048,0.00062089,37529.0,37522.0,0.22705858]
[1643833921898,0.23427893,37529.0,37522.0,0.22705858]
[1643833922105,0.23365804,37529.0,37522.0,0.22622057]
[1643833922299,0.23427893,37529.0,37522.0,0.22684158]
[1643833923199,0.23427893,37529.0,37522.0,0.22622057]
[1643833923200,0.23365804,37529.0,37522.0,0.22622057]
[1643833923402,0.23427893,37529.0,37522.0,0.22684158]
[1643833923803,0.00062089,37529.0,37523.0,0.179663]
[1643833924403,0.42,37531.0,37523.0,0.179663]
[1643833924702,0.00062067,37529.0,37527.0,0.20414592]
[1643833925302,0.00062067,37529.0,37528.0,0.29288888]
[1643833925550,0.00062067,37529.0,37526.0,0.26392785]
[1643833925751,0.42,37531.0,37527.0,0.18250441]
[1643833925952,0.42,37531.0,37526.0,0.26392785]
[1643833925953,0.00062068,37530.0,37526.0,0.26392785]
[1643833926657,0.00062068,37530.0,37526.0,0.486503]
[1643833926854,0.42,37531.0,37526.0,0.486503]
[1643833928757,0.28082699,37533.0,37526.0,0.486503]
[1643833928955,0.28082699,37533.0,37527.0,0.13046691]
[1643833928956,0.42,37533.0,37527.0,0.13046691]
[1643833929163,0.01100973,37535.0,37527.0,0.25038491]
[1643833929409,0.01100973,37535.0,37533.0,0.22684677]
[1643833929607,0.01100973,37535.0,37534.0,0.0533]
[1643833930007,0.01100973,37535.0,37534.0,0.053084]
[1643833930408,0.00600973,37535.0,37534.0,0.053084]
[1643833930607,0.00600973,37535.0,37534.0,0.39160816]
[1643833930914,0.00062021,37536.0,37534.0,0.39160816]
[1643833931211,0.00062021,37536.0,37535.0,0.05]
[1643833931412,0.00062021,37536.0,37535.0,1.6533]
[1643833931609,13.1974,37540.0,37535.0,1.754391]
[1643833931813,13.1974,37540.0,37539.0,1.00254337]
[1643833932009,13.1974,37540.0,37539.0,0.40691437]
[1643833932210,13.1974,37540.0,37539.0,0.35584337]
[1643833932609,13.1974,37540.0,37539.0,0.70584337]
[1643833933253,13.1974,37540.0,37539.0,0.35562737]
[1643833934658,13.1974,37540.0,37539.0,0.65562737]
[1643833934862,13.1974,37540.0,37539.0,0.35562737]
[1643833937200,13.1974,37540.0,37539.0,0.103084]
[1643833937403,13.1974,37540.0,37539.0,0.0533]
[1643833937802,13.1974,37540.0,37535.0,0.05]
[1643833938000,13.1974,37540.0,37534.0,0.0533]
[1643833938301,0.26887229,37536.0,37534.0,0.0533]
[1643833939404,0.17691908,37535.0,37534.0,0.0533]
[1643833939606,0.17691908,37535.0,37527.0,0.3958]
[1643833939607,0.72691908,37535.0,37527.0,0.3958]
[1643833939805,0.72691908,37535.0,37526.0,0.27523951]
[1643833940547,0.72691908,37535.0,37528.0,0.27561894]
[1643833941248,0.55,37535.0,37528.0,0.27561894]
[1643833941546,0.72391398,37535.0,37527.0,0.066619]
[1643833941748,0.74228125,37535.0,37525.0,0.00165327]
[1643833942447,0.74228125,37535.0,37525.0,0.001]
[1643833942648,0.27846963,37530.0,37527.0,0.27207485]
[1643833942951,0.74228125,37535.0,37527.0,0.26707485]
[1643833943348,0.19228125,37535.0,37527.0,0.31707485]
[1643833943948,0.30369497,37538.0,37527.0,0.26707485]
[1643833944148,0.30369497,37538.0,37527.0,0.38369385]
[1643833944408,0.47971141,37538.0,37527.0,0.38369385]
[1643833944609,0.21156947,37536.0,37529.0,0.21028047]
[1643833944910,0.21156947,37536.0,37529.0,0.20528047]
[1643833945509,0.30369499,37538.0,37529.0,0.20528047]
[1643833945707,0.00065306,37538.0,37529.0,0.33850747]
[1643833945906,0.00065306,37538.0,37529.0,0.27189347]
[1643833946107,0.1,37539.0,37529.0,0.27189347]
[1643833946307,0.00065307,37538.0,37529.0,0.27189347]
[1643833946506,0.00065307,37538.0,37531.0,0.0666042]
[1643833946705,0.00065307,37538.0,37535.0,0.24558949]
[1643833947309,13.1974,37540.0,37535.0,0.29558949]
[1643833947516,0.0006531,37538.0,37536.0,0.066599]
[1643833947708,0.0006531,37538.0,37537.0,0.951089]
[1643833947909,0.0006531,37538.0,37537.0,0.101089]
[1643833948349,0.0005111,37538.0,37536.0,0.119899]
[1643833948551,13.1974,37540.0,37536.0,0.119899]
[1643833948750,13.1974,37540.0,37536.0,0.219899]
[1643833948950,13.1974,37540.0,37537.0,0.10108]
[1643833949348,13.1974,37540.0,37538.0,0.11989]
[1643833949547,13.1974,37540.0,37539.0,0.884249]
[1643833949749,13.1974,37540.0,37539.0,0.337549]
[1643833950152,13.1974,37540.0,37539.0,0.43408443]
[1643833950548,13.1974,37540.0,37539.0,0.98408443]
[1643833951353,13.1974,37540.0,37539.0,0.43408443]
[1643833954203,13.1974,37540.0,37539.0,0.337549]
[1643833956975,13.1424,37540.0,37539.0,0.887549]
[1643833957175,13.1424,37540.0,37539.0,0.337549]
[1643833958576,13.1424,37540.0,37539.0,0.287549]
[1643833959399,13.1424,37540.0,37539.0,0.277549]
[1643833959800,13.1424,37540.0,37539.0,0.327549]
[1643833963458,13.1424,37540.0,37539.0,0.154372]
[1643833964755,13.1424,37540.0,37539.0,0.204372]
[1643833965256,13.1424,37540.0,37539.0,0.151072]
[1643833969110,13.1424,37540.0,37534.0,0.24427967]
[1643833969308,15.01274378,37540.0,37534.0,0.24427967]
[1643833969909,15.03191086,37540.0,37535.0,0.101086]
[1643833970110,0.23412544,37538.0,37535.0,0.101086]
[1643833970307,0.23412544,37538.0,37535.0,0.151086]
[1643833970556,13.16156708,37540.0,37536.0,0.101084]
[1643833970752,13.16156708,37540.0,37534.0,0.36088067]
[1643833970954,13.16156708,37540.0,37535.0,0.101085]
[1643833971652,0.17663549,37539.0,37533.0,0.05]
[1643833971855,0.17774121,37539.0,37529.0,0.6215]
[1643833972153,0.17774121,37539.0,37529.0,0.5]
[1643833972353,1.79149815,37536.0,37529.0,0.5]
[1643833972552,0.1999133,37535.0,37529.0,0.5]
[1643833972752,0.1999133,37535.0,37529.0,0.56661]
[1643833972955,0.1999133,37535.0,37529.0,0.06661]
[1643833973453,0.1999133,37535.0,37529.0,0.06161]
[1643833974051,0.1999133,37535.0,37530.0,0.066607]
[1643833974705,0.1999133,37535.0,37529.0,0.11161]
[1643833975103,0.37775087,37535.0,37527.0,0.06726739]
[1643833975304,0.37753487,37535.0,37527.0,0.00065239]
[1643833975503,0.2155937,37529.0,37527.0,0.00065239]
[1643833976105,0.2155937,37529.0,37525.0,0.001]
[1643833976309,0.2155937,37529.0,37526.0,0.00065235]
[1643833977106,0.27082918,37531.0,37526.0,0.00065235]
[1643833977305,0.27082918,37531.0,37523.0,0.12988035]
[1643833977505,0.27082918,37531.0,37526.0,0.00065235]
[1643833977705,0.27082918,37531.0,37527.0,0.066614]
[1643833978158,0.51385036,37531.0,37527.0,0.066614]
[1643833978357,0.53262158,37531.0,37527.0,0.066614]
[1643833978562,0.53262158,37531.0,37525.0,0.05]
[1643833978759,0.53262158,37531.0,37524.0,0.066618]
[1643833978959,0.53262158,37531.0,37525.0,0.101128]
[1643833979158,0.53262158,37531.0,37525.0,0.141719]
[1643833979358,0.53262158,37531.0,37525.0,0.040591]
[1643833979760,0.55140724,37531.0,37524.0,0.066618]
[1643833979962,0.53263602,37531.0,37525.0,0.101129]
[1643833980863,0.53263602,37531.0,37523.0,0.12488035]
[1643833981064,0.17359448,37530.0,37524.0,0.10174201]
[1643833981365,0.52727325,37530.0,37524.0,0.05061001]
[1643833981567,0.52727325,37530.0,37524.0,0.00061001]
[1643833981825,0.06664,37528.0,37524.0,0.00061001]
[1643833982121,0.07893226,37526.0,37512.0,0.59472629]
[1643833982321,0.1,37523.0,37512.0,0.00062854]
[1643833982519,0.24560594,37525.0,37512.0,0.00062854]
[1643833982520,0.47988646,37522.0,37512.0,0.00062854]
[1643833982721,0.606626,37521.0,37512.0,0.00062854]
[1643833982918,0.19230594,37520.0,37512.0,0.00062854]
[1643833983120,0.27987137,37514.0,37512.0,0.00062854]
[1643833983321,0.26651368,37513.0,37512.0,0.00062854]
[1643833983520,0.26651368,37513.0,37511.0,0.01]
[1643833983719,0.26651368,37513.0,37511.0,0.00762854]
[1643833983920,2.27194851,37515.0,37511.0,0.00762854]
[1643833984322,0.1182,37521.0,37511.0,0.00762854]
[1643833984623,0.18972488,37519.0,37511.0,0.00762854]
[1643833985026,0.28486847,37512.0,37511.0,0.00762854]
[1643833985423,0.28465147,37512.0,37511.0,0.00762854]
[1643833991508,0.55089749,37512.0,37511.0,0.00762854]
[1643833991707,0.55089749,37512.0,37503.0,0.05]
[1643833992010,0.55089749,37512.0,37510.0,0.00061142]
[1643833992907,0.55089749,37512.0,37505.0,0.066652]
[1643833993363,0.17723187,37511.0,37501.0,0.013]
[1643833993563,0.17723187,37511.0,37501.0,0.008]
[1643833993564,0.27723187,37511.0,37501.0,0.008]
[1643833993760,0.17723187,37511.0,37501.0,0.008]
[1643833994259,0.28205224,37505.0,37502.0,0.0006121]
[1643833994461,0.24913503,37506.0,37503.0,0.55]
[1643833994662,0.52225969,37506.0,37502.0,0.0006121]
[1643833995063,0.19796602,37505.0,37502.0,0.0006121]
[1643833995365,0.52225969,37506.0,37501.0,0.008]
[1643833996163,0.52225969,37506.0,37500.0,0.2532]
[1643833997408,0.18004009,37505.0,37500.0,0.2482]
[1643833997612,0.27312466,37506.0,37500.0,0.2482]
[1643833997909,0.27355854,37506.0,37500.0,0.2482]
[1643833998711,0.48156502,37506.0,37500.0,0.2482]
[1643833998911,0.48113114,37506.0,37500.0,0.2482]
[1643833999112,0.10431809,37505.0,37501.0,0.00064958]
[1643833999313,0.48178064,37506.0,37501.0,0.00064958]
[1643834000113,0.48113114,37506.0,37500.0,0.1882]
[1643834000314,0.48156503,37506.0,37500.0,0.1882]
[1643834000565,0.48156503,37506.0,37500.0,0.2382]
[1643834000763,0.27355855,37506.0,37500.0,0.2382]
[1643834000963,0.27355855,37506.0,37501.0,0.101237]
[1643834001164,0.27355855,37506.0,37500.0,0.2382]
[1643834001367,0.27312466,37506.0,37500.0,0.2382]
[1643834001564,0.00043389,37506.0,37501.0,0.18953932]
[1643834001767,0.00043389,37506.0,37502.0,0.154533]
[1643834001964,0.00043389,37506.0,37503.0,0.34802663]
[1643834002165,0.00043389,37506.0,37504.0,0.37323966]
[1643834002366,0.00043389,37506.0,37505.0,1.001222]
[1643834002565,0.25503507,37506.0,37505.0,1.051222]
[1643834003163,0.25503507,37506.0,37505.0,0.151222]
[1643834003367,0.25481807,37506.0,37500.0,0.1882]
[1643834003567,0.25481807,37506.0,37501.0,0.101233]
[1643834003768,0.19796602,37514.0,37510.0,0.09470883]
[1643834003970,0.02108443,37515.0,37510.0,0.06437]
[1643834004168,0.01875085,37517.0,37511.0,0.0533]
[1643834004819,0.01875085,37517.0,37511.0,0.26162868]
[1643834005220,0.00043403,37516.0,37512.0,0.101191]
[1643834005420,0.00043403,37516.0,37513.0,0.0533]
[1643834005618,0.00043403,37516.0,37514.0,0.101181]
[1643834005820,0.00043403,37516.0,37514.0,0.06547264]
[1643834006021,0.24573573,37515.0,37510.0,0.066644]
[1643834006220,0.24573573,37515.0,37511.0,0.0533]
[1643834006421,0.24573573,37515.0,37512.0,0.0533]
[1643834006620,0.24573573,37515.0,37513.0,0.0533]
[1643834006822,0.24573573,37515.0,37514.0,0.0533]
[1643834007624,0.00064929,37516.0,37514.0,0.0533]
[1643834008458,0.18110889,37523.0,37514.0,0.0533]
[1643834008758,0.27735729,37516.0,37514.0,0.0533]
[1643834009757,0.27735729,37516.0,37514.0,0.0483]
[1643834010758,0.00064883,37517.0,37514.0,0.0483]
[1643834011057,0.40653971,37525.0,37514.0,0.0483]
[1643834011258,0.00064883,37517.0,37514.0,0.0483]
[1643834012143,0.18639405,37523.0,37514.0,0.0483]
[1643834012542,0.21588539,37516.0,37514.0,0.0483]
[1643834012742,0.47044387,37516.0,37514.0,0.0483]
[1643834012945,0.25455848,37516.0,37514.0,0.0483]
[1643834013944,0.24686221,37515.0,37514.0,0.0483]
[1643834014144,0.42951084,37515.0,37514.0,0.0483]
[1643834014349,0.42951084,37515.0,37509.0,0.316574]
[1643834014350,0.42951084,37515.0,37509.0,0.05]
[1643834014546,0.42951084,37515.0,37504.0,0.066661]
[1643834015044,0.08998913,37510.0,37504.0,0.066661]
[1643834015244,0.28795583,37510.0,37503.0,0.02085479]